bitfinex/quotes_BTCUSD_20260101
["timestamp","ask_amount","ask_price","bid_price","bid_amount"]
[1767255892348,0.01070408,87773.0,87761.0,0.0228]
[1767255892563,0.01070408,87772.0,87761.0,0.0228]
[1767255892772,0.0114,87775.0,87761.0,0.0228]
[1767255892990,0.01070407,87774.0,87761.0,0.0228]
[1767255893196,0.0114,87775.0,87761.0,0.0228]
[1767255893197,0.01070407,87773.0,87761.0,0.0228]
[1767255893407,0.01070407,87772.0,87761.0,0.0228]
[1767255893583,0.0114,87775.0,87761.0,0.0228]
[1767255893783,0.01070407,87774.0,87761.0,0.0228]
[1767255893965,0.01070407,87773.0,87761.0,0.0228]
[1767255894162,0.01070407,87772.0,87761.0,0.0228]
[1767255894383,0.0114,87775.0,87761.0,0.0228]
[1767255894561,0.01070407,87774.0,87761.0,0.0228]
[1767255894756,0.01070407,87773.0,87761.0,0.0228]
[1767255894962,0.01070407,87772.0,87761.0,0.0228]
[1767255895179,0.0114,87775.0,87761.0,0.0228]
[1767255895382,0.01070407,87774.0,87761.0,0.08491042]
[1767255895564,0.01070407,87773.0,87762.0,0.01139445]
[1767255895758,0.01070407,87772.0,87763.0,0.01139432]
[1767255895942,0.0114,87775.0,87763.0,0.01139432]
[1767255896198,0.01070398,87774.0,87762.0,0.07350487]
[1767255896404,0.01070398,87773.0,87762.0,0.07350487]
[1767255896599,0.01070398,87772.0,87762.0,0.07350487]
[1767255896766,0.0114,87775.0,87762.0,0.07350487]
[1767255896967,0.01070361,87774.0,87762.0,0.07350487]
[1767255897300,0.01070361,87773.0,87762.0,0.07350487]
[1767255897604,0.01070361,87772.0,87762.0,0.07350487]
[1767255897758,0.0114,87775.0,87762.0,0.07350487]
[1767255897965,0.01070345,87774.0,87762.0,0.07350487]
[1767255898231,0.01070345,87773.0,87762.0,0.06211042]
[1767255898422,0.01070345,87772.0,87762.0,0.06211042]
[1767255898712,0.0114,87775.0,87762.0,0.07350487]
[1767255898849,0.01070333,87774.0,87762.0,0.07350487]
[1767255899049,0.01070333,87773.0,87762.0,0.07350487]
[1767255899307,0.01070333,87772.0,87762.0,0.07350487]
[1767255899453,0.0114,87775.0,87762.0,0.06211042]
[1767255899682,0.01070323,87774.0,87762.0,0.06211042]
[1767255899883,0.01070323,87773.0,87762.0,0.06211042]
[1767255900120,0.01070323,87772.0,87762.0,0.06211042]
[1767255900322,0.0114,87775.0,87762.0,0.06211042]
[1767255900528,0.01070322,87774.0,87762.0,0.06211042]
[1767255900725,0.01070322,87773.0,87762.0,0.06211042]
[1767255900936,0.01070322,87772.0,87762.0,0.06211042]
[1767255901197,0.0114,87775.0,87762.0,0.06211042]
[1767255901498,0.01070315,87774.0,87762.0,0.06211042]
[1767255901697,0.01070315,87773.0,87762.0,0.06211042]
[1767255901936,0.01070315,87772.0,87762.0,0.06211042]
[1767255902116,0.0114,87775.0,87762.0,0.06211042]
[1767255902318,0.01070309,87774.0,87762.0,0.06211042]
[1767255902538,0.01070309,87773.0,87762.0,0.06211042]
[1767255902692,0.01070309,87772.0,87762.0,0.06211042]
[1767255902896,0.0114,87775.0,87762.0,0.06211042]
[1767255903095,0.01070309,87774.0,87762.0,0.06211042]
[1767255903341,0.01070309,87773.0,87762.0,0.06211042]
[1767255903540,0.0114,87775.0,87762.0,0.06211042]
[1767255903863,0.01070303,87774.0,87762.0,0.06211042]
[1767255904062,0.01070303,87773.0,87762.0,0.06211042]
[1767255904361,0.0114,87775.0,87762.0,0.07350487]
[1767255904586,0.01070298,87774.0,87762.0,0.06211042]
[1767255904773,0.01070298,87773.0,87762.0,0.07350487]
[1767255904952,0.0114,87775.0,87762.0,0.07350487]
[1767255905118,0.01070298,87774.0,87762.0,0.07350487]
[1767255905312,0.01070298,87773.0,87762.0,0.06211042]
[1767255905519,0.0114,87775.0,87762.0,0.06211042]
[1767255905721,0.01070294,87774.0,87762.0,0.06211042]
[1767255905946,0.0114,87775.0,87762.0,0.07350487]
[1767255906144,0.01070273,87774.0,87762.0,0.07350487]
[1767255906346,0.0114,87775.0,87762.0,0.07350487]
[1767255906560,0.01070222,87774.0,87762.0,0.07350487]
[1767255906764,0.0114,87775.0,87762.0,0.07350487]
[1767255906944,0.01070222,87774.0,87762.0,0.07350487]
[1767255907174,0.0114,87775.0,87762.0,0.07350487]
[1767255907356,0.01070187,87774.0,87762.0,0.07350487]
[1767255907556,0.0114,87775.0,87762.0,0.07350487]
[1767255907811,0.01070187,87774.0,87762.0,0.07350487]
[1767255907973,0.0114,87775.0,87762.0,0.07350487]
[1767255908170,0.01070187,87774.0,87762.0,0.06211042]
[1767255908379,0.0114,87775.0,87762.0,0.06211042]
[1767255908581,0.0107016,87774.0,87763.0,0.0114]
[1767255908781,0.0114,87775.0,87763.0,0.0114]
[1767255908982,0.0107016,87774.0,87763.0,0.0114]
[1767255909184,0.0114,87775.0,87763.0,0.0114]
[1767255909404,0.01070138,87774.0,87763.0,0.0114]
[1767255909644,0.0114,87775.0,87763.0,0.0114]
[1767255909846,0.01070138,87774.0,87763.0,0.0114]
[1767255910001,0.0114,87775.0,87763.0,0.0114]
[1767255910203,0.01070122,87774.0,87763.0,0.0114]
[1767255910406,0.0114,87775.0,87763.0,0.0114]
[1767255910609,0.0107012,87774.0,87763.0,0.0114]
[1767255910809,0.0114,87775.0,87763.0,0.0114]
[1767255911048,0.0107012,87774.0,87763.0,0.0114]
[1767255911227,0.0114,87775.0,87763.0,0.0114]
[1767255911432,0.01070106,87774.0,87763.0,0.0114]
[1767255911757,0.0114,87775.0,87763.0,0.0114]
[1767255911953,0.01070106,87774.0,87763.0,0.0114]
[1767255912251,0.0114,87775.0,87763.0,0.0114]
[1767255912459,0.01070095,87774.0,87763.0,0.0114]
[1767255912648,0.0114,87775.0,87763.0,0.0114]
[1767255912832,0.01070095,87774.0,87763.0,0.0114]
[1767255913145,0.0114,87775.0,87763.0,0.0114]
[1767255913356,0.01070086,87774.0,87763.0,0.0114]
[1767255913569,0.0114,87775.0,87763.0,0.0114]
[1767255913777,0.01070086,87774.0,87763.0,0.0114]
[1767255913973,0.0114,87775.0,87763.0,0.0114]
[1767255914129,0.01070086,87774.0,87763.0,0.0114]
[1767255914338,0.0114,87775.0,87763.0,0.0114]
[1767255914600,0.0107008,87774.0,87763.0,0.0114]
[1767255914809,0.0114,87775.0,87763.0,0.0114]
[1767255915014,0.0107008,87774.0,87763.0,0.0114]
[1767255915191,0.0114,87775.0,87763.0,0.0114]
[1767255915376,0.01070076,87774.0,87763.0,0.0114]
[1767255915576,0.0114,87775.0,87763.0,0.0114]
[1767255915832,0.01070076,87774.0,87763.0,0.0114]
[1767255916044,0.0114,87775.0,87763.0,0.0114]
[1767255916195,0.01070074,87774.0,87763.0,0.0114]
[1767255916403,0.0114,87775.0,87763.0,0.0114]
[1767255916602,0.01070074,87774.0,87763.0,0.0114]
[1767255916807,0.0114,87775.0,87763.0,0.0114]
[1767255917124,0.01070074,87774.0,87763.0,0.0114]
[1767255917300,0.0114,87775.0,87763.0,0.0114]
[1767255917512,0.01070073,87774.0,87763.0,0.0114]
[1767255917803,0.0114,87775.0,87763.0,0.0114]
[1767255918002,0.01070073,87774.0,87763.0,0.0114]
[1767255918269,0.0114,87775.0,87763.0,0.0114]
[1767255918492,0.01070075,87774.0,87763.0,0.0114]
[1767255918673,0.0114,87775.0,87763.0,0.0114]
[1767255918827,0.01070075,87774.0,87763.0,0.0114]
[1767255919029,0.0114,87775.0,87763.0,0.0114]
[1767255919329,0.01070075,87774.0,87763.0,0.0114]
[1767255919565,0.0114,87775.0,87763.0,0.0114]
[1767255919756,0.01070079,87774.0,87763.0,0.0114]
[1767255919956,0.0114,87775.0,87763.0,0.0114]
[1767255920156,0.01070079,87774.0,87763.0,0.0114]
[1767255920354,0.0114,87775.0,87763.0,0.0114]
[1767255920554,0.01070085,87774.0,87763.0,0.0114]
[1767255920877,0.0114,87775.0,87763.0,0.0114]
[1767255921035,0.01070086,87774.0,87763.0,0.0114]
[1767255921235,0.0114,87775.0,87763.0,0.0114]
[1767255921433,0.01070094,87774.0,87763.0,0.0114]
[1767255921682,0.0114,87775.0,87763.0,0.0114]
[1767255921850,0.01070094,87774.0,87763.0,0.0114]
[1767255922095,0.0114,87775.0,87763.0,0.0114]
[1767255922231,0.01070105,87774.0,87763.0,0.0114]
[1767255922456,0.0114,87775.0,87763.0,0.0114]
[1767255922681,0.01070105,87774.0,87763.0,0.0114]
[1767255922880,0.0114,87775.0,87763.0,0.0114]
[1767255923088,0.01070105,87774.0,87763.0,0.0114]
[1767255923412,0.0114,87775.0,87763.0,0.0114]
[1767255923625,0.01070119,87774.0,87763.0,0.0114]
[1767255923798,0.0114,87775.0,87763.0,0.0114]
[1767255924000,0.01070119,87774.0,87763.0,0.0114]
[1767255924212,0.0114,87775.0,87763.0,0.0114]
[1767255924405,0.01070137,87774.0,87763.0,0.0114]
[1767255924570,0.0114,87775.0,87763.0,0.0114]
[1767255924785,0.01070137,87774.0,87763.0,0.0114]
[1767255925013,0.0114,87775.0,87763.0,0.0114]
[1767255925186,0.01070139,87774.0,87763.0,0.0114]
[1767255925388,0.0114,87775.0,87763.0,0.0114]
[1767255925589,0.01070158,87774.0,87763.0,0.0114]
[1767255925789,0.0114,87775.0,87763.0,0.0114]
[1767255926035,0.01070158,87774.0,87763.0,0.0114]
[1767255926237,0.0114,87775.0,87763.0,0.0114]
[1767255926457,0.01070166,87774.0,87763.0,0.0114]
[1767255926654,0.0114,87775.0,87763.0,0.0114]
[1767255926857,0.01070166,87774.0,87763.0,0.0114]
[1767255927001,0.0114,87775.0,87763.0,0.0114]
[1767255927204,0.01070169,87774.0,87763.0,0.0114]
[1767255927434,0.0114,87775.0,87763.0,0.0114]
[1767255927644,0.01070175,87774.0,87763.0,0.0114]
[1767255927851,0.0114,87775.0,87763.0,0.0114]
[1767255928052,0.01070175,87774.0,87763.0,0.0114]
[1767255928388,0.0114,87775.0,87763.0,0.0114]
[1767255928598,0.01070187,87774.0,87763.0,0.0114]
[1767255928797,0.0114,87775.0,87763.0,0.0114]
[1767255928997,0.01070187,87774.0,87763.0,0.0114]
[1767255929195,0.0114,87775.0,87763.0,0.04560489]
[1767255929394,0.010702,87774.0,87763.0,0.04560489]
[1767255929656,0.0114,87775.0,87763.0,0.04560489]
[1767255929812,0.010702,87774.0,87763.0,0.04560489]
[1767255929997,0.0114,87775.0,87763.0,0.04560489]
[1767255930294,0.01070202,87774.0,87763.0,0.04560489]
[1767255930493,0.0114,87775.0,87763.0,0.04560489]
[1767255930751,0.01070202,87774.0,87763.0,0.04560489]
[1767255930958,0.0114,87775.0,87763.0,0.04560489]
[1767255931241,0.01070202,87774.0,87763.0,0.04560489]
[1767255931450,0.0114,87775.0,87763.0,0.04560489]
[1767255931670,0.01070219,87774.0,87763.0,0.04560489]
[1767255931882,0.0114,87775.0,87763.0,0.04560489]
[1767255932117,0.01070219,87774.0,87763.0,0.04560489]
[1767255932296,0.0114,87775.0,87763.0,0.04560489]
[1767255932497,0.01070239,87774.0,87763.0,0.04560489]
[1767255932649,0.0114,87775.0,87763.0,0.04560489]
[1767255932850,0.01070239,87774.0,87763.0,0.04560489]
[1767255933169,0.0114,87775.0,87763.0,0.04560489]
[1767255933373,0.01070263,87774.0,87763.0,0.04560489]
[1767255933695,0.0114,87775.0,87763.0,0.04560489]
[1767255933992,0.01070263,87774.0,87763.0,0.04560489]
[1767255934168,0.01070298,87773.0,87763.0,0.04560489]
[1767255934370,0.0114,87775.0,87763.0,0.04560489]
[1767255934540,0.01070298,87774.0,87763.0,0.04560489]
[1767255934751,0.01070298,87773.0,87763.0,0.04560489]
[1767255935004,0.0114,87775.0,87763.0,0.04560489]
[1767255935201,0.01070374,87774.0,87763.0,0.04560489]
[1767255935428,0.01070374,87773.0,87763.0,0.04560489]
[1767255935731,0.0114,87775.0,87763.0,0.04560489]
[1767255935872,0.01070374,87774.0,87763.0,0.04560489]
[1767255936054,0.01070374,87773.0,87763.0,0.04560489]
[1767255936265,0.0114,87775.0,87763.0,0.04560489]
[1767255936463,0.01070374,87774.0,87763.0,0.04560489]
[1767255936663,0.01070374,87773.0,87763.0,0.04560489]
[1767255936892,0.0114,87775.0,87763.0,0.04560489]
[1767255937096,0.01070374,87774.0,87763.0,0.04560489]
[1767255937302,0.01070374,87773.0,87763.0,0.04560489]
[1767255937504,0.0114,87775.0,87763.0,0.04560489]
[1767255937720,0.01070374,87774.0,87763.0,0.04560489]
[1767255937897,0.01070374,87773.0,87763.0,0.04560489]
[1767255938098,0.0114,87775.0,87763.0,0.04560489]
[1767255938299,0.01070373,87774.0,87763.0,0.04560489]
[1767255938508,0.01070373,87773.0,87763.0,0.04560489]
[1767255938735,0.0114,87775.0,87763.0,0.04560489]
[1767255939036,0.01070373,87774.0,87763.0,0.04560489]
[1767255939250,0.01070373,87773.0,87763.0,0.04560489]
[1767255939571,0.0114,87775.0,87763.0,0.04560489]
[1767255939757,0.01070373,87774.0,87763.0,0.04560489]
[1767255939917,0.01070373,87773.0,87763.0,0.04560489]
[1767255940113,0.0114,87775.0,87763.0,0.04560489]
[1767255940321,0.01070373,87774.0,87763.0,0.04560489]
[1767255940520,0.01070373,87773.0,87763.0,0.04560489]
[1767255940820,0.0114,87775.0,87763.0,0.04560489]
[1767255941055,0.01070373,87774.0,87763.0,0.04560489]
[1767255941241,0.01070373,87773.0,87763.0,0.04560489]
[1767255941420,0.0114,87775.0,87763.0,0.04560489]
[1767255941624,0.01070373,87774.0,87763.0,0.04560489]
[1767255941843,0.01070373,87773.0,87763.0,0.04560489]
[1767255942162,0.0114,87775.0,87763.0,0.04560489]
[1767255942376,0.01070372,87774.0,87763.0,0.04560489]
[1767255942507,0.01070372,87773.0,87763.0,0.04560489]
[1767255942705,0.0114,87775.0,87763.0,0.04560489]
[1767255942960,0.01070372,87774.0,87763.0,0.04560489]
[1767255943154,0.01070372,87773.0,87763.0,0.04560489]
[1767255943389,0.0114,87775.0,87763.0,0.04560489]
[1767255943666,0.01070372,87774.0,87763.0,0.04560489]
[1767255943822,0.01070372,87773.0,87763.0,0.04560489]
[1767255944029,0.0114,87775.0,87763.0,0.04560489]
[1767255944227,0.01070372,87774.0,87763.0,0.04560489]
[1767255944551,0.01070372,87773.0,87763.0,0.04560489]
[1767255944814,0.0114,87775.0,87763.0,0.04560489]
[1767255944989,0.51513064,87773.0,87763.0,0.04560489]
[1767255945214,0.0114,87775.0,87763.0,0.04560489]
[1767255945507,0.01070372,87774.0,87763.0,0.04560489]
[1767255945713,0.01070372,87773.0,87763.0,0.04560489]
[1767255945872,0.0114,87775.0,87763.0,0.04560489]
[1767255946078,0.01070372,87774.0,87763.0,0.04560489]
[1767255946396,0.01070372,87773.0,87763.0,0.04560489]
[1767255946589,0.0114,87775.0,87764.0,0.02284]
[1767255946795,0.01070372,87774.0,87763.0,0.04560489]
[1767255947149,0.01070372,87773.0,87763.0,0.04560489]
[1767255947298,0.0114,87775.0,87763.0,0.04560489]
[1767255947495,0.01070371,87774.0,87763.0,0.04560489]
[1767255947703,0.01070371,87773.0,87763.0,0.04560489]
[1767255947905,0.0114,87775.0,87763.0,0.04560489]
[1767255948104,0.01070371,87774.0,87763.0,0.04560489]
[1767255948304,0.01070371,87773.0,87763.0,0.04560489]
[1767255948643,0.0114,87775.0,87763.0,0.04560489]
[1767255948834,0.01070371,87774.0,87763.0,0.04560489]
[1767255949030,0.01070371,87773.0,87763.0,0.04560489]
[1767255949231,0.0114,87775.0,87763.0,0.04560489]
[1767255949446,0.01070371,87774.0,87763.0,0.04560489]
[1767255949589,0.01070371,87773.0,87763.0,0.04560489]
[1767255949805,0.0114,87775.0,87763.0,0.05699921]
[1767255950011,0.01070371,87774.0,87763.0,0.04560489]
[1767255950260,0.01070371,87773.0,87763.0,0.04560489]
[1767255950424,0.0114,87775.0,87763.0,0.0114]
[1767255950633,0.0107037,87774.0,87764.0,0.03420489]
[1767255950836,0.0107037,87773.0,87764.0,0.03420489]
[1767255951015,0.0114,87775.0,87764.0,0.03420489]
[1767255951217,0.01070371,87774.0,87764.0,0.03420489]
[1767255951517,0.01070371,87773.0,87764.0,0.03420489]
[1767255951717,0.0114,87775.0,87764.0,0.03420489]
[1767255951973,0.01070371,87774.0,87764.0,0.03420489]
[1767255952153,0.01070371,87773.0,87764.0,0.03420489]
[1767255952386,0.0114,87775.0,87764.0,0.03420489]
[1767255952587,0.01070371,87774.0,87764.0,0.03420489]
[1767255952786,0.01070371,87773.0,87764.0,0.03420489]
[1767255952952,0.0114,87775.0,87764.0,0.03420489]
[1767255953157,0.01070371,87774.0,87764.0,0.03420489]
[1767255953397,0.01070371,87773.0,87764.0,0.03420489]
[1767255953713,0.0114,87775.0,87764.0,0.03420489]
[1767255953915,0.01070371,87774.0,87764.0,0.03420489]
[1767255954108,0.01070371,87773.0,87764.0,0.03420489]
[1767255954316,0.0114,87775.0,87764.0,0.03420489]
[1767255954493,0.01070372,87774.0,87764.0,0.03420489]
[1767255954695,0.01070372,87773.0,87764.0,0.03420489]
[1767255954876,0.0114,87775.0,87764.0,0.03420489]
[1767255955078,0.01070372,87774.0,87764.0,0.03420489]
[1767255955282,0.01070372,87773.0,87764.0,0.03420489]
[1767255955480,0.0114,87775.0,87764.0,0.03420489]
[1767255955688,0.01070373,87774.0,87764.0,0.03420489]
[1767255956039,0.01070373,87773.0,87764.0,0.03420489]
[1767255956334,0.0114,87775.0,87764.0,0.03420489]
[1767255956559,0.01070373,87774.0,87764.0,0.03420489]
[1767255956840,0.01070373,87773.0,87764.0,0.03420489]
[1767255957032,0.0114,87775.0,87764.0,0.03420489]
[1767255957337,0.01070374,87774.0,87764.0,0.03420489]
[1767255957537,0.01070374,87773.0,87764.0,0.04559908]
[1767255957736,0.0114,87775.0,87764.0,0.03420489]
[1767255957904,0.01070374,87774.0,87764.0,0.03420489]
[1767255958099,0.01070374,87773.0,87764.0,0.03420489]
[1767255958298,0.0114,87775.0,87764.0,0.03420489]
[1767255958505,0.01070375,87774.0,87764.0,0.03420489]
[1767255958709,0.01070375,87773.0,87764.0,0.03420489]
[1767255959069,0.0114,87775.0,87764.0,0.03420489]
[1767255959187,0.01070375,87774.0,87764.0,0.03420489]
[1767255959404,0.01070375,87773.0,87764.0,0.03420489]
[1767255959606,0.0114,87775.0,87764.0,0.03420489]
[1767255959866,0.01070375,87774.0,87764.0,0.03420489]
[1767255960063,0.01070375,87773.0,87764.0,0.03420489]
[1767255960367,0.0114,87775.0,87764.0,0.03420489]
[1767255960567,0.01070375,87774.0,87762.0,0.07351042]
[1767255960767,0.01070375,87773.0,87762.0,0.08490487]
[1767255960967,0.0114,87775.0,87763.0,0.03420489]
[1767255961247,0.01070375,87774.0,87763.0,0.03420489]
[1767255961392,0.01070375,87773.0,87763.0,0.03420489]
[1767255961591,0.0114,87775.0,87763.0,0.03420489]
[1767255961764,0.01070375,87774.0,87763.0,0.03420489]
[1767255961960,0.01070375,87773.0,87763.0,0.03420489]
[1767255962282,0.0114,87775.0,87763.0,0.04559921]
[1767255962479,0.01070375,87774.0,87763.0,0.03420489]
[1767255962678,0.01070375,87773.0,87763.0,0.03420489]
[1767255962881,0.0114,87775.0,87763.0,0.03420489]
[1767255963207,0.01070375,87774.0,87763.0,0.04559921]
[1767255963370,0.01070375,87773.0,87763.0,0.03420489]
[1767255963677,0.0114,87775.0,87763.0,0.03420489]
[1767255963899,0.01070374,87774.0,87763.0,0.03420489]
[1767255964093,0.01070374,87773.0,87763.0,0.03420489]
[1767255964336,0.0114,87775.0,87763.0,0.03420489]
[1767255964535,0.01070374,87774.0,87763.0,0.03420489]
[1767255964752,0.01070374,87773.0,87763.0,0.03420489]
[1767255964995,0.0114,87775.0,87763.0,0.04559921]
[1767255965200,0.01070375,87774.0,87763.0,0.03420489]
[1767255965409,0.01070375,87773.0,87763.0,0.03420489]
[1767255965615,0.0114,87775.0,87763.0,0.03420489]
[1767255965787,0.01070374,87774.0,87763.0,0.03420489]
[1767255965949,0.01070374,87773.0,87763.0,0.03420489]
[1767255966147,0.0114,87775.0,87763.0,0.03420489]
[1767255966348,0.01070375,87774.0,87763.0,0.03420489]
[1767255966550,0.01070375,87773.0,87763.0,0.03420489]
[1767255966754,0.0114,87775.0,87763.0,0.03420489]
[1767255966966,0.01070374,87774.0,87763.0,0.03420489]
[1767255967287,0.01070374,87773.0,87763.0,0.03420489]
[1767255967520,0.0114,87775.0,87763.0,0.03420489]
[1767255967738,0.01070374,87774.0,87763.0,0.03420489]
[1767255967922,0.01070374,87773.0,87763.0,0.03420489]
[1767255968117,0.0114,87775.0,87762.0,0.08490487]
[1767255968444,0.01070374,87774.0,87762.0,0.08490487]
[1767255968749,0.01070374,87773.0,87762.0,0.08490487]
[1767255968969,0.0114,87775.0,87762.0,0.08490487]
[1767255969277,0.01070375,87774.0,87762.0,0.08490487]
[1767255969475,0.01070375,87773.0,87762.0,0.08490487]
[1767255969651,0.0114,87775.0,87762.0,0.08490487]
[1767255969889,0.01070375,87774.0,87763.0,0.01139432]
[1767255970070,0.01070375,87773.0,87763.0,0.01139432]
[1767255970270,0.0114,87775.0,87763.0,0.01139432]
[1767255970471,0.01070375,87774.0,87763.0,0.01139432]
[1767255970675,0.01070375,87773.0,87763.0,0.01139432]
[1767255970851,0.0114,87775.0,87763.0,0.01139432]
[1767255971057,0.01070375,87774.0,87763.0,0.01139432]
[1767255971257,0.01070375,87773.0,87763.0,0.01139432]
[1767255971460,0.0114,87775.0,87763.0,0.01139432]
[1767255971705,0.01070376,87774.0,87763.0,0.01139432]
[1767255971909,0.01070376,87773.0,87763.0,0.01139432]
[1767255972195,0.0114,87775.0,87763.0,0.01139432]
[1767255972341,0.01070376,87774.0,87763.0,0.01139432]
[1767255972545,0.01070376,87773.0,87763.0,0.01139432]
[1767255972752,0.0114,87775.0,87763.0,0.01139432]
[1767255972949,0.01070376,87774.0,87763.0,0.01139432]
[1767255973174,0.0114,87775.0,87762.0,0.08490487]
[1767255973175,0.01070376,87773.0,87762.0,0.08490487]
[1767255973381,0.0114,87775.0,87762.0,0.08490487]
[1767255974458,0.0114,87775.0,87763.0,0.01139432]
[1767255976484,0.0114,87775.0,87764.0,0.01139419]
[1767255978648,0.0114,87775.0,87763.0,0.01139432]
[1767255978853,0.0114,87775.0,87764.0,0.01139419]
[1767255979049,0.0114,87775.0,87763.0,0.01139432]
[1767255980458,0.0114,87775.0,87764.0,0.01139419]
[1767255980862,0.0114,87775.0,87763.0,0.01139432]
[1767255981653,0.0114,87775.0,87764.0,0.01139419]
[1767255981874,0.0114,87775.0,87763.0,0.01139432]
[1767255982565,0.0114,87775.0,87762.0,0.08490487]
[1767255982713,0.0114,87775.0,87763.0,0.01139432]
[1767255982938,0.0114,87775.0,87762.0,0.08490487]
[1767255983519,0.0114,87775.0,87763.0,0.01139432]
[1767255985368,0.01070378,87774.0,87763.0,0.01139432]
[1767255985574,0.01070378,87773.0,87763.0,0.01139432]
[1767255985875,0.0114,87775.0,87763.0,0.01139432]
[1767255986095,0.01070378,87774.0,87763.0,0.01139432]
[1767255986220,0.01070378,87773.0,87763.0,0.01139432]
[1767255986429,0.0114,87775.0,87763.0,0.01139432]
[1767255986637,0.01070378,87774.0,87763.0,0.01139432]
[1767255986847,0.01070378,87773.0,87763.0,0.01139432]
[1767255987044,0.0114,87775.0,87762.0,0.07351042]
[1767255987295,0.01070378,87774.0,87763.0,0.01139432]
[1767255987464,0.01070378,87773.0,87762.0,0.08490487]
[1767255987671,0.0114,87775.0,87763.0,0.01139432]
[1767255987920,0.01070378,87774.0,87762.0,0.07351042]
[1767255988112,0.01070378,87773.0,87762.0,0.07351042]
[1767255988316,0.01070378,87772.0,87762.0,0.07351042]
[1767255988457,0.0114,87775.0,87762.0,0.07351042]
[1767255988690,0.01070291,87774.0,87762.0,0.07351042]
[1767255988913,0.01070291,87773.0,87762.0,0.07351042]
[1767255989117,0.01070291,87772.0,87762.0,0.07351042]
[1767255989315,0.0114,87775.0,87762.0,0.07351042]
[1767255989516,0.01070243,87774.0,87762.0,0.07351042]
[1767255989691,0.01070243,87773.0,87762.0,0.07351042]
[1767255989897,0.01070243,87772.0,87762.0,0.07351042]
[1767255990102,0.0114,87775.0,87762.0,0.07351042]
[1767255990329,0.01070243,87774.0,87762.0,0.07351042]
[1767255990552,0.01070243,87773.0,87762.0,0.07351042]
[1767255990758,0.01070243,87772.0,87762.0,0.07351042]
[1767255990963,0.0114,87775.0,87762.0,0.07351042]
[1767255991166,0.01070213,87774.0,87762.0,0.07351042]
[1767255991403,0.01070213,87773.0,87762.0,0.07351042]
[1767255991570,0.01070213,87772.0,87762.0,0.07351042]
[1767255991756,0.0114,87775.0,87762.0,0.07351042]
[1767255992075,0.01070187,87774.0,87762.0,0.07351042]
[1767255992278,0.01070187,87773.0,87762.0,0.07351042]
[1767255992438,0.01070187,87772.0,87762.0,0.07351042]
[1767255992790,0.0114,87775.0,87762.0,0.07351042]
[1767255993075,0.01070165,87774.0,87762.0,0.07351042]
[1767255993273,0.01070165,87773.0,87762.0,0.07351042]
[1767255993577,0.01070165,87772.0,87762.0,0.07351042]
[1767255993821,0.0114,87775.0,87762.0,0.07351042]
[1767255994001,0.01070147,87774.0,87762.0,0.07351042]
[1767255994191,0.01070147,87773.0,87762.0,0.07351042]
[1767255994378,0.01070147,87772.0,87762.0,0.07351042]
[1767255994558,0.0114,87775.0,87762.0,0.07351042]
[1767255994758,0.01070132,87774.0,87762.0,0.07351042]
[1767255994991,0.01070132,87773.0,87762.0,0.07351042]
[1767255995197,0.0114,87775.0,87762.0,0.07351042]
[1767255995198,0.01070132,87772.0,87762.0,0.07351042]
[1767255995402,0.0114,87775.0,87762.0,0.07351042]
[1767255995600,0.0107012,87774.0,87762.0,0.07351042]
[1767255995799,0.0114,87775.0,87764.0,0.01139419]
[1767255996038,0.01070097,87774.0,87762.0,0.07351042]
[1767255996181,0.0114,87775.0,87762.0,0.07351042]
[1767255996377,0.010701,87774.0,87762.0,0.07351042]
[1767255996582,0.0114,87775.0,87762.0,0.07351042]
[1767255996822,0.01070098,87774.0,87762.0,0.08490487]
[1767255997037,0.0114,87775.0,87763.0,0.01139432]
[1767255997217,0.01070097,87774.0,87763.0,0.01139432]
[1767255997382,0.0114,87775.0,87763.0,0.01139432]
[1767255997616,0.01070098,87774.0,87763.0,0.01139432]
[1767255997818,0.0114,87775.0,87762.0,0.08490487]
[1767255998046,0.01070098,87774.0,87762.0,0.06211042]
[1767255998333,0.0114,87775.0,87762.0,0.07351042]
[1767255998334,0.01070098,87773.0,87762.0,0.07351042]
[1767255998555,0.0114,87775.0,87762.0,0.07351042]
[1767255998732,0.0107011,87774.0,87762.0,0.07351042]
[1767255998932,0.0107011,87773.0,87762.0,0.07351042]
[1767255999140,0.0114,87775.0,87762.0,0.07351042]
[1767255999337,0.0107011,87774.0,87762.0,0.07351042]
[1767255999574,0.0107011,87773.0,87762.0,0.07351042]
[1767255999771,0.0114,87775.0,87763.0,0.03420489]
[1767255999995,0.01070111,87774.0,87763.0,0.03420489]
[1767256000155,0.01070111,87773.0,87763.0,0.03420489]
[1767256000360,0.0114,87775.0,87763.0,0.03420489]
[1767256000561,0.01070113,87774.0,87763.0,0.03420489]
[1767256000768,0.01070113,87773.0,87763.0,0.03420489]
[1767256000973,0.0114,87775.0,87763.0,0.03420489]
[1767256001170,0.01070113,87774.0,87763.0,0.03420489]
[1767256001377,0.01070113,87773.0,87763.0,0.03420489]
[1767256001557,0.0114,87775.0,87763.0,0.03420489]
[1767256001769,0.01070115,87774.0,87763.0,0.03420489]
[1767256002094,0.01070115,87773.0,87763.0,0.03420489]
[1767256002233,0.0114,87775.0,87763.0,0.03420489]
[1767256002442,0.01070118,87774.0,87763.0,0.03420489]
[1767256002758,0.01070118,87773.0,87763.0,0.03420489]
[1767256002960,0.0114,87775.0,87763.0,0.03420489]
[1767256003160,0.01070118,87774.0,87763.0,0.03420489]
[1767256003362,0.01070118,87773.0,87763.0,0.03420489]
[1767256003571,0.0114,87775.0,87763.0,0.03420489]
[1767256003861,0.0107012,87774.0,87763.0,0.03420489]
[1767256004063,0.0107012,87773.0,87763.0,0.03420489]
[1767256004299,0.0114,87775.0,87763.0,0.03420489]
[1767256004487,0.01070124,87774.0,87763.0,0.03420489]
[1767256004663,0.01070124,87773.0,87763.0,0.03420489]
[1767256004863,0.0114,87775.0,87763.0,0.03420489]
[1767256005096,0.01070124,87774.0,87763.0,0.03420489]
[1767256005307,0.01070124,87773.0,87763.0,0.03420489]
[1767256005509,0.0114,87775.0,87763.0,0.03420489]
[1767256005829,0.01070127,87774.0,87763.0,0.03420489]
[1767256006030,0.01070127,87773.0,87763.0,0.03420489]
[1767256006212,0.0114,87775.0,87763.0,0.03420489]
[1767256006420,0.01070132,87774.0,87763.0,0.03420489]
[1767256006623,0.01070132,87773.0,87763.0,0.03420489]
[1767256006832,0.0114,87775.0,87763.0,0.03420489]
[1767256007028,0.01070132,87774.0,87763.0,0.03420489]
[1767256007265,0.01070132,87773.0,87763.0,0.03420489]
[1767256007440,0.0114,87775.0,87763.0,0.03420489]
[1767256007643,0.01070137,87774.0,87763.0,0.03420489]